bitfinex-derivatives/quotes_SOLF0:USTF0_20220102
["timestamp","ask_amount","ask_price","bid_price","bid_amount"]
[1641123666273,27.66479,175.74,175.7,1.27885308]
[1641123666974,27.66479,175.74,175.69,33.74725727]
[1641123667174,31.148,175.75,175.69,33.74725727]
[1641123667874,2.7536712,175.74,175.69,29.7182]
[1641123668474,31.148,175.75,175.69,33.74723552]
[1641123668675,27.66479,175.74,175.69,33.74723552]
[1641123669075,27.66479,175.74,175.7,5.30443617]
[1641123670078,27.66479,175.74,175.69,29.7182]
[1641123670976,31.148,175.75,175.7,5.30443307]
[1641123671376,58.81279,175.75,175.69,29.7182]
[1641123672281,58.81279,175.75,175.7,5.30444468]
[1641123672879,58.81279,175.75,175.69,29.7182]
[1641123673483,58.81279,175.75,175.7,5.30443549]
[1641123673680,31.148,175.75,175.7,5.30443549]
[1641123674382,31.148,175.75,175.69,29.7182]
[1641123674985,31.148,175.75,175.7,5.30441308]
[1641123675987,2.7612655,175.74,175.72,4.04011845]
[1641123676585,44.11110624,175.76,175.69,29.7182]
[1641123676787,14.88157605,175.75,175.71,4.04011328]
[1641123677888,14.88157605,175.75,175.69,29.7182]
[1641123678388,14.88157605,175.75,175.71,4.04012608]
[1641123679091,14.88157605,175.75,175.69,29.7182]
[1641123679690,14.88157605,175.75,175.71,4.04000628]
[1641123680392,2.76125981,175.75,175.71,4.04000628]
[1641123680593,27.66479,175.76,175.69,29.7182]
[1641123680997,2.76129078,175.75,175.7,5.31899208]
[1641123681198,12.12042428,175.74,175.7,5.31899208]
[1641123681798,19.11347229,175.75,175.71,4.0400605]
[1641123682899,19.11347229,175.75,175.69,29.7182]
[1641123682900,2.76129078,175.74,175.7,1.27886752]
[1641123683499,4.232,175.75,175.71,4.03996908]
[1641123684203,4.232,175.75,175.69,29.7182]
[1641123684401,2.76110084,175.74,175.72,4.03996876]
[1641123685000,4.232,175.75,175.69,29.7182]
[1641123685901,2.75934223,175.74,175.71,4.03737641]
[1641123686401,4.232,175.75,175.69,29.7182]
[1641123686601,27.66479,175.75,175.69,29.7182]
[1641123687200,27.66479,175.75,175.71,4.03741076]
[1641123687400,2.75938002,175.74,175.71,4.03741076]
[1641123688001,34.41679,175.75,175.72,4.03733339]
[1641123688901,2.75930227,175.74,175.7,1.27803781]
[1641123689502,6.752,175.75,175.69,29.7182]
[1641123689704,6.752,175.75,175.72,4.03733817]
[1641123690602,6.752,175.75,175.69,29.7182]
[1641123690806,2.7593888,175.74,175.71,4.03741875]
[1641123691502,6.752,175.75,175.71,4.03741875]
[1641123691704,6.752,175.75,175.69,29.7182]
[1641123692106,2.75933025,175.74,175.71,4.03736552]
[1641123692906,18.86412924,175.75,175.7,4.03740049]
[1641123693306,2.75936932,175.74,175.7,1.27803172]
[1641123694615,18.86412924,175.75,175.71,4.03736646]
[1641123694811,6.752,175.75,175.71,4.03736646]
[1641123695012,39.77691924,175.76,175.71,4.03736646]
[1641123695212,14.87160001,175.75,175.7,5.31551575]
[1641123695814,14.87160001,175.75,175.69,29.7182]
[1641123696616,14.87160001,175.75,175.71,4.04003854]
[1641123697718,14.87160001,175.75,175.69,29.7182]
[1641123698219,14.87160001,175.75,175.7,5.31896061]
[1641123699015,14.87160001,175.75,175.71,4.040106]
[1641123699619,32.27679,175.76,175.69,29.7182]
[1641123699818,32.27679,175.76,175.7,1.27885358]
[1641123700120,4.612,175.76,175.7,1.27885358]
[1641123700322,2.75905775,175.75,175.71,4.03689226]
[1641123701221,7.56505775,175.75,175.71,4.03689226]
[1641123701421,4.806,175.75,175.7,1.27783462]
[1641123702727,4.806,175.75,175.69,29.7182]
[1641123702927,2.75905647,175.74,175.71,4.03689212]
[1641123703426,4.806,175.75,175.7,1.27783671]
[1641123704024,2.75903533,175.74,175.71,4.03687188]
[1641123704626,7.806,175.75,175.67,12.12033984]
[1641123704827,19.91667678,175.75,175.69,4.03714331]
[1641123705430,27.66479,175.73,175.69,4.03714331]
[1641123706026,27.66479,175.73,175.66,27.66479]
[1641123706728,2.75938811,175.72,175.69,4.03708006]
[1641123707930,27.66479,175.73,175.66,27.66479]
[1641123708529,27.66479,175.73,175.69,4.03712663]
[1641123708530,2.75931556,175.72,175.69,4.03712663]
[1641123709431,27.66479,175.73,175.66,1.27781043]
[1641123709933,2.75939541,175.72,175.69,4.03719922]
[1641123710438,27.66479,175.73,175.66,1.27781043]
[1641123710639,39.77546678,175.73,175.68,4.03733819]
[1641123711139,39.77546678,175.73,175.65,31.7399]
[1641123711340,2.75960372,175.72,175.65,31.7399]
[1641123712641,4.03737995,175.69,175.68,4.03737995]
[1641123713443,12.11067678,175.73,175.65,31.7399]
[1641123713644,27.66479,175.72,175.65,31.7399]
[1641123714643,4.03734792,175.7,175.69,4.03734792]
[1641123714844,9.23534792,175.7,175.69,4.03734792]
[1641123715243,5.198,175.7,175.66,1.27778894]
[1641123715846,5.198,175.7,175.66,19.5020057]
[1641123715847,9.23859367,175.7,175.66,19.5020057]
[1641123716746,5.198,175.7,175.66,19.5020057]
[1641123717349,5.198,175.7,175.69,4.04065594]
[1641123717948,5.198,175.7,175.66,1.27778894]
[1641123718348,27.66479,175.72,175.66,1.27778894]
[1641123719049,27.66479,175.72,175.69,4.04061806]
[1641123719249,42.43721002,175.74,175.69,4.04061806]
[1641123719648,27.66479,175.72,175.69,4.04061806]
[1641123719849,27.66479,175.72,175.68,4.03094149]
[1641123720548,27.66479,175.72,175.69,4.03078228]
[1641123721449,27.66479,175.72,175.68,4.03077139]
[1641123722253,27.66479,175.72,175.66,1.27778894]
[1641123722753,27.66479,175.72,175.67,4.03084916]
[1641123723453,27.66479,175.72,175.66,1.27778894]
[1641123724451,27.66479,175.72,175.67,4.03085443]
[1641123725152,27.66479,175.72,175.66,1.27778894]
[1641123725954,27.66479,175.72,175.67,4.03083267]
[1641123726656,27.66479,175.72,175.68,4.03071099]
[1641123727357,27.66479,175.72,175.66,1.27778894]
[1641123728157,27.66479,175.72,175.68,4.03072197]
[1641123728760,27.66479,175.72,175.69,4.03073344]
[1641123730064,27.66479,175.72,175.66,1.27778894]
[1641123730766,27.66479,175.72,175.71,4.0402216]
[1641123731264,27.66479,175.72,175.67,12.12033984]
[1641123731464,30.42625708,175.72,175.67,12.12033984]
[1641123732066,27.66479,175.72,175.71,4.04032111]
[1641123732668,30.4262758,175.72,175.67,12.12033984]
[1641123732867,2.7614858,175.72,175.67,12.12033984]
[1641123733266,30.3153,175.74,175.71,4.0403108]
[1641123733470,2.76147709,175.73,175.71,4.0403108]
[1641123733867,2.76143032,175.74,175.69,1.27778894]
[1641123734668,12.12096334,175.75,175.67,12.12033984]
[1641123734867,40.53159683,175.76,175.71,4.04027091]
[1641123735071,27.66479,175.72,175.71,4.04027091]
[1641123735267,34.25679,175.72,175.71,4.04027091]
[1641123735470,34.25679,175.72,175.67,12.12033984]
[1641123736068,34.25679,175.72,175.71,4.04030397]
[1641123736770,34.25679,175.72,175.7,4.04030342]
[1641123736969,37.01825897,175.72,175.7,4.04030342]
[1641123737770,34.25679,175.72,175.66,19.50348297]
[1641123737969,2.76147247,175.71,175.66,19.50348297]
[1641123738270,6.592,175.72,175.7,4.04032857]
[1641123738471,12.12091026,175.74,175.7,4.04032857]
[1641123739070,12.12091026,175.74,175.66,13.39975223]
[1641123739271,2.75755474,175.74,175.69,4.03455915]
[1641123739770,27.66479,175.72,175.69,4.03455915]
[1641123739969,27.66479,175.72,175.66,1.27884197]
[1641123740270,27.66479,175.72,175.69,4.0345695]
[1641123740970,27.66479,175.72,175.66,1.27884197]
[1641123741570,27.66479,175.72,175.68,4.03460604]
[1641123741969,12.12091026,175.74,175.68,4.03460604]
[1641123742371,15.12091026,175.75,175.69,4.03456523]
[1641123742571,27.66479,175.72,175.69,4.03456523]
[1641123742771,33.00379,175.72,175.69,4.03456523]
[1641123742971,33.00379,175.72,175.66,1.27884197]
[1641123743670,33.00379,175.72,175.69,4.03456421]
[1641123744171,33.00379,175.72,175.66,1.27884197]
[1641123744371,33.00379,175.72,175.7,4.03454852]
[1641123744571,5.339,175.72,175.7,4.03454852]
[1641123744871,5.339,175.72,175.66,19.49479918]
[1641123745274,33.00379,175.72,175.66,19.49479918]
[1641123745771,33.00379,175.72,175.7,4.03455303]
[1641123746372,33.00379,175.72,175.66,19.49479918]
[1641123747075,33.00379,175.72,175.69,4.03458183]
[1641123747574,33.00379,175.72,175.66,1.27884197]
[1641123748376,33.00379,175.72,175.69,4.03462703]
[1641123749078,2.76156516,175.71,175.7,4.04039087]
[1641123749778,33.00379,175.72,175.66,19.50354803]
[1641123750477,2.76165886,175.71,175.7,4.04047605]
[1641123751277,33.00379,175.72,175.66,19.50354803]
[1641123751478,33.00379,175.72,175.69,4.04046784]
[1641123751883,2.76164752,175.71,175.66,1.27884197]
[1641123752479,5.339,175.72,175.66,1.27884197]
[1641123752678,30.9696,175.73,175.69,4.04051222]
[1641123753380,2.76172574,175.72,175.66,1.27884197]
[1641123753778,6.009,175.72,175.69,4.04053343]
[1641123754578,6.009,175.72,175.65,42.55781026]
[1641123754778,2.75896836,175.71,175.68,4.03650503]
[1641123755180,6.009,175.72,175.65,30.4369]
[1641123755381,43.09121054,175.73,175.65,30.4369]
[1641123755881,2.75903563,175.72,175.68,4.03656619]
[1641123756581,70.75600054,175.73,175.65,30.4369]
[1641123756782,4.922,175.72,175.65,30.4369]
[1641123757083,7.68112789,175.72,175.67,4.03665006]
[1641123757282,3.0,175.7,175.67,4.03665006]
[1641123757484,3.0,175.69,175.67,4.03665006]
[1641123757683,3.0,175.7,175.67,4.03665006]
[1641123757986,3.0,175.68,175.67,4.03665006]
[1641123758184,5.832,175.68,175.64,12.12091026]
[1641123758484,27.66479,175.67,175.64,12.12091026]
[1641123758887,30.42470525,175.67,175.63,1.27745059]
[1641123759686,27.66479,175.67,175.62,30.5062]
[1641123761089,27.66479,175.67,175.63,1.2774467]
[1641123761288,21.19849633,175.67,175.63,1.2774467]
[1641123761689,21.19849633,175.67,175.62,30.5062]
[1641123762289,21.19849633,175.67,175.63,1.27704347]
[1641123763590,5.832,175.68,175.63,1.27704347]
[1641123763789,31.7637,175.69,175.63,1.27704347]
[1641123764191,2.76040681,175.68,175.63,1.27704347]
[1641123764491,7.49040681,175.68,175.63,1.27704347]
[1641123764690,4.03743637,175.66,175.63,1.27704347]
[1641123766995,4.03743637,175.67,175.63,1.27704347]
[1641123767796,4.03743637,175.67,175.61,19.49502809]
[1641123768498,4.03743637,175.67,175.61,12.12091026]
[1641123769099,4.03743637,175.66,175.62,12.12091026]
[1641123770602,32.39479,175.68,175.6,1.27704347]
[1641123773502,4.73,175.68,175.63,4.02467247]
[1641123773702,35.80113637,175.69,175.63,4.02467247]
[1641123774101,4.03743637,175.68,175.62,4.02467247]
[1641123774402,31.70222637,175.68,175.62,4.02467247]
[1641123775706,27.66479,175.68,175.63,4.02467247]
[1641123777004,27.66479,175.68,175.64,4.02467247]
[1641123778407,27.66479,175.68,175.63,5.30171594]
[1641123781507,27.66479,175.68,175.64,4.02467247]
[1641123783611,4.03743637,175.7,175.64,4.02467247]
[1641123785115,2.76297408,175.7,175.67,4.02467247]
[1641123786218,30.42776408,175.7,175.67,4.02467247]
[1641123787018,2.76297408,175.69,175.67,4.02467247]
[1641123788322,2.76297408,175.69,175.66,4.02467247]
[1641123789021,14.88458462,175.69,175.65,4.02467247]
[1641123790721,42.54937462,175.7,175.66,4.02467247]
[1641123791624,2.76297408,175.69,175.66,4.02467247]
[1641123792527,2.76297408,175.69,175.65,4.02467247]
[1641123793229,16.61461054,175.69,175.65,4.02467247]
[1641123793427,19.61461054,175.69,175.63,1.27704347]
[1641123793627,3.0,175.67,175.63,1.27704347]
[1641123793828,15.12161054,175.67,175.6,29.7263]
[1641123795030,12.12161054,175.66,175.61,1.27783625]
[1641123795429,39.78640054,175.66,175.61,1.27783625]
[1641123795830,27.66479,175.66,175.61,1.27783625]
[1641123797034,29.177,175.67,175.61,1.27783625]
[1641123797935,30.42264753,175.66,175.61,1.27783625]
[1641123798738,27.66479,175.66,175.61,1.27783625]
[1641123803049,30.66479,175.66,175.61,1.27783625]
[1641123803448,27.66479,175.66,175.61,1.27783625]
[1641123805349,27.66479,175.66,175.6,29.7263]
[1641123805551,2.75654619,175.65,175.6,29.7263]
[1641123805750,9.06754619,175.65,175.6,29.7263]
[1641123806450,6.311,175.65,175.6,29.7263]
[1641123811358,56.84179,175.67,175.6,29.7263]
[1641123811857,2.75655812,175.66,175.6,29.7263]
[1641123813962,30.42134812,175.66,175.61,1.27537766]
[1641123814763,30.42134812,175.66,175.6,29.7263]
[1641123814964,2.75655812,175.65,175.6,29.7263]
[1641123815865,2.75655812,175.65,175.61,1.27538123]
[1641123819475,12.12161054,175.67,175.63,3.0]
[1641123819675,31.4172,175.76,175.61,16.80656097]
[1641123819876,31.4172,175.76,175.61,8.12038123]
[1641123820174,59.08199,175.76,175.67,27.66479]
[1641123820375,91.3728808,175.76,175.67,27.66479]
[1641123820578,94.3728808,175.76,175.67,27.66479]
[1641123821480,10.0576822,175.75,175.67,21.19945389]
[1641123822278,13.0576822,175.75,175.67,21.19945389]
[1641123823583,10.0576822,175.75,175.67,21.19945389]
[1641123823782,13.0576822,175.75,175.67,21.19945389]
[1641123824283,10.0576822,175.75,175.67,21.19945389]
[1641123824484,13.0576822,175.75,175.67,21.19945389]
[1641123827489,45.348573,175.75,175.67,21.19945389]
[1641123828987,45.348573,175.75,175.66,29.7414]
[1641123829888,42.348573,175.75,175.66,29.7414]
[1641123830290,45.348573,175.75,175.66,29.7414]
[1641123830789,27.66479,175.74,175.66,29.7414]
[1641123831389,10.0576822,175.73,175.66,29.7414]
[1641123834395,13.0576822,175.73,175.66,29.7414]
[1641123834598,3.0,175.72,175.66,29.7414]
[1641123834796,3.0,175.69,175.63,27.66479]
[1641123835698,37.7224722,175.7,175.63,27.66479]
[1641123836296,10.0576822,175.69,175.63,27.66479]
[1641123836896,27.66479,175.7,175.63,27.66479]
[1641123837099,35.2463,175.71,175.59,30.7281]
[1641123837796,62.91109,175.71,175.62,27.66479]
[1641123838699,59.91109,175.71,175.62,27.66479]
[1641123844205,10.05978333,175.7,175.62,27.66479]
[1641123844906,59.91109,175.71,175.62,27.66479]
[1641123845509,10.05971962,175.7,175.62,27.66479]
[1641123845708,10.05971962,175.7,175.59,30.7281]
[1641123846309,10.05971962,175.7,175.63,27.66479]
[1641123850217,12.12473004,175.68,175.63,27.66479]
[1641123850512,16.57473004,175.68,175.63,27.66479]
[1641123854018,16.57473004,175.68,175.64,4.04146349]
[1641123854217,4.04146349,175.65,175.64,4.04146349]
[1641123857020,4.04146349,175.65,175.63,27.66479]
[1641123857220,4.04146349,175.66,175.63,27.66479]
[1641123859622,4.04146349,175.66,175.64,1.27940184]
[1641123861025,4.04146349,175.66,175.62,12.12473004]
[1641123861828,4.04146349,175.66,175.63,27.66479]
[1641123862825,4.04146349,175.66,175.64,1.27940184]
[1641123864326,4.04146349,175.66,175.65,4.04060501]
[1641123864527,12.12473004,175.69,175.65,4.04060501]
[1641123865926,12.12473004,175.69,175.65,31.70539501]
[1641123866127,14.88674054,175.7,175.65,31.70539501]
[1641123866728,14.88674054,175.7,175.65,4.04060501]
[1641123867333,12.12473004,175.68,175.64,4.04060501]
[1641123867535,18.07773004,175.68,175.64,4.04060501]
[1641123867932,18.07773004,175.68,175.65,4.04060501]
[1641123868132,2.7620105,175.67,175.65,4.04060501]
[1641123869635,12.12473004,175.69,175.66,4.04060501]
[1641123869836,14.88674054,175.7,175.66,4.04060501]
[1641123872036,12.12473004,175.69,175.65,4.04060501]
[1641123875640,14.88674054,175.69,175.65,4.04060501]
[1641123876743,14.88674054,175.69,175.65,1.52129847]
[1641123876744,3.0,175.68,175.65,1.52129847]
[1641123876942,17.88674054,175.69,175.65,1.52129847]
[1641123877144,27.66479,175.66,175.65,1.52129847]
[1641123877343,33.19279,175.66,175.65,1.52129847]
[1641123877844,33.19279,175.66,175.61,12.12473004]
[1641123878047,45.31752004,175.66,175.59,1.27917782]
[1641123878744,2.7620105,175.65,175.59,1.27917782]
[1641123879350,2.7620105,175.65,175.59,13.40390786]
[1641123879546,2.7620105,175.65,175.59,19.50974207]
[1641123879943,5.528,175.66,175.59,13.40390786]
[1641123880146,5.528,175.66,175.59,1.27917782]
[1641123882158,4.0582643,175.66,175.59,1.27917782]
[1641123882356,30.9809,175.68,175.59,1.27917782]
[1641123882958,2.75480659,175.67,175.59,1.27917782]
[1641123886262,2.75480659,175.67,175.59,28.94396782]
[1641123886663,2.75480659,175.67,175.6,1.27917782]
[1641123888764,2.75480659,175.67,175.59,1.27917782]
[1641123889364,2.75480659,175.67,175.59,28.94396782]
[1641123890163,2.75480659,175.67,175.6,1.27917782]
[1641123891466,12.12473004,175.66,175.59,1.27917782]
[1641123892166,14.87953663,175.67,175.59,19.50945195]
[1641123893267,14.87953663,175.67,175.59,47.17424195]
[1641123894072,14.87953663,175.67,175.59,13.40390786]
[1641123894271,14.87953663,175.67,175.6,1.27917782]
[1641123895173,14.87953663,175.67,175.59,19.50708956]
[1641123895174,2.75480659,175.67,175.59,19.50708956]
[1641123895472,2.75480659,175.67,175.59,47.17187956]
[1641123895872,2.75480659,175.67,175.6,1.27917782]
[1641123896875,14.87953663,175.67,175.59,1.27917782]
[1641123897375,14.87953663,175.67,175.59,28.94396782]
[1641123898277,14.87953663,175.67,175.6,1.27917782]
[1641123899078,3.0,175.66,175.6,1.27917782]
[1641123899278,9.297,175.66,175.6,1.27917782]
[1641123899479,9.297,175.66,175.59,1.27917782]
[1641123900379,2.75480659,175.65,175.59,1.27917782]
[1641123904085,14.87953663,175.66,175.59,1.27917782]
[1641123904788,39.3609,175.68,175.59,1.27917782]
[1641123904789,14.87953663,175.67,175.59,1.27917782]
[1641123905884,42.54432663,175.67,175.59,1.27917782]
[1641123906585,14.87953663,175.66,175.59,1.27917782]
[1641123907687,12.12473004,175.66,175.59,1.27917782]
[1641123909389,14.87953663,175.67,175.59,1.27917782]
[1641123909891,14.87953663,175.67,175.59,19.50953755]
[1641123913090,2.75480659,175.67,175.59,19.50953755]
[1641123913790,2.75480659,175.67,175.59,47.17432755]
[1641123913991,2.75480659,175.67,175.6,12.12473004]
[1641123914691,14.87953663,175.67,175.6,1.27917782]
[1641123915492,12.12473004,175.66,175.6,1.27917782]
[1641123916993,14.87953663,175.67,175.6,1.27917782]
[1641123917797,12.12473004,175.66,175.6,1.27917782]
[1641123926705,12.12473004,175.66,175.6,28.94396782]
[1641123926907,12.12473004,175.66,175.6,27.66479]
[1641123927311,12.12473004,175.66,175.61,1.27917782]
[1641123929109,14.87953663,175.67,175.61,1.27917782]
[1641123930111,12.12473004,175.66,175.61,1.27917782]
[1641123930812,14.87953663,175.67,175.61,1.27917782]
[1641123931413,12.12473004,175.66,175.61,1.27917782]
[1641123931913,14.87953663,175.67,175.61,1.27917782]
[1641123932514,14.87953663,175.67,175.59,19.50949052]
[1641123932715,14.87953663,175.67,175.61,27.66479]
[1641123933513,14.87953663,175.67,175.62,1.27917782]
[1641123935715,12.12473004,175.66,175.59,1.27917782]
[1641123936617,14.87953663,175.67,175.59,19.50951682]
[1641123937418,4.04149261,175.63,175.62,4.04149261]
[1641123939519,14.87953663,175.67,175.62,4.04149261]
[1641123939718,12.12473004,175.66,175.61,4.04149261]
[1641123940420,12.12473004,175.65,175.61,4.04149261]
[1641123940924,12.12473004,175.66,175.62,4.04149261]
[1641123942824,12.12473004,175.66,175.58,43.42133004]
[1641123943322,12.12473004,175.66,175.62,4.04149555]
[1641123944222,14.87953663,175.66,175.58,43.42133004]
[1641123944424,14.87953663,175.66,175.6,27.66479]
[1641123944824,14.87953663,175.66,175.62,4.04149102]
[1641123945325,14.87953663,175.66,175.61,1.27889763]
[1641123946127,14.87953663,175.66,175.62,4.04141661]
[1641123947530,30.9809,175.68,175.6,27.66479]
[1641123947732,5.164,175.66,175.63,4.04141423]
[1641123948231,2.76251513,175.65,175.6,27.66479]
[1641123948834,2.76251513,175.65,175.59,12.12473004]
[1641123949032,5.164,175.66,175.63,4.04141161]
[1641123949534,2.76248354,175.65,175.61,27.66479]
[1641123950235,5.164,175.66,175.63,4.04138882]
[1641123950835,2.76280659,175.65,175.61,27.66479]
[1641123951339,5.164,175.66,175.61,27.66479]
[1641123951537,5.164,175.66,175.63,4.04198097]
[1641123952337,2.76288523,175.65,175.61,27.66479]
[1641123952638,2.76288523,175.65,175.59,12.12473004]
[1641123952837,5.164,175.66,175.63,4.04190527]
[1641123953040,12.12594269,175.67,175.63,4.04190527]
[1641123953639,33.9809,175.68,175.61,27.66479]
[1641123953843,8.74775698,175.67,175.64,4.04186431]
[1641123954342,2.76270898,175.66,175.62,1.27910733]
[1641123955241,5.985,175.67,175.63,4.04183878]
[1641123955441,18.11059293,175.67,175.63,4.04183878]
[1641123955941,2.75902986,175.66,175.62,4.03642703]
[1641123956642,5.985,175.67,175.62,4.03642703]
[1641123956841,4.03642575,175.64,175.62,1.27910988]
[1641123957244,2.7590859,175.66,175.62,4.03647797]
[1641123957946,4.03655156,175.63,175.61,4.03655156]
[1641123958147,8.25255156,175.63,175.61,4.03655156]
[1641123958349,8.25255156,175.63,175.61,31.70134156]
[1641123958650,4.216,175.63,175.61,27.66479]
[1641123959350,8.25256374,175.63,175.61,31.70135374]
[1641123960048,4.216,175.63,175.61,27.66479]
[1641123960248,4.216,175.63,175.58,31.2966]
[1641123960651,4.216,175.63,175.62,4.03648639]
[1641123961353,4.216,175.63,175.61,27.66479]
[1641123961554,4.216,175.63,175.62,1.27739123]
[1641123961753,5.985,175.67,175.62,1.27739123]
[1641123961956,43.10649293,175.68,175.61,27.66479]
[1641123962355,4.03642489,175.65,175.61,27.66479]
[1641123963257,4.03619128,175.66,175.64,4.03619128]
[1641123965761,33.9809,175.68,175.64,4.03619128]
[1641123965963,2.75911561,175.67,175.62,5.31361202]
[1641123966564,4.03652541,175.64,175.62,5.31361202]
[1641123966765,9.69852541,175.64,175.62,5.31361202]
[1641123967367,5.662,175.64,175.63,4.03619128]
[1641123968065,5.662,175.64,175.62,1.27742074]
[1641123968270,48.40349293,175.68,175.62,1.27742074]
[1641123968566,2.762698,175.67,175.64,4.0418107]
[1641123969669,14.88829093,175.67,175.63,4.0418107]
[1641123971373,14.88829093,175.67,175.62,5.31923144]
[1641123971973,14.88829093,175.67,175.63,4.0418107]
[1641123973478,14.88829093,175.67,175.62,5.31923144]
[1641123973975,14.88829093,175.67,175.63,4.0418107]
[1641123976279,2.762698,175.67,175.63,4.0418107]
[1641123976980,5.762698,175.67,175.64,4.0418107]
[1641123977681,5.762698,175.67,175.62,1.27742074]
[1641123977682,2.762698,175.66,175.62,5.31923144]
[1641123978682,12.12559293,175.65,175.61,27.66479]
[1641123979485,3.0,175.63,175.61,4.0418107]
[1641123979687,35.89279,175.63,175.61,4.0418107]
[1641123980494,14.88829093,175.62,175.57,5.32008657]
[1641123981488,3.0,175.6,175.57,5.32008657]
[1641123981689,3.0,175.6,175.58,4.0418107]
[1641123982088,2.762698,175.62,175.58,4.0418107]
[1641123982289,5.762698,175.62,175.58,4.0418107]
[1641123982489,3.0,175.62,175.52,32.0204]
[1641123983288,4.01561389,175.61,175.52,32.0204]
[1641123983889,30.1188,175.6,175.52,32.0204]
[1641123984990,34.13441389,175.6,175.52,32.0204]
[1641123985590,30.1188,175.6,175.52,32.0204]
[1641123996902,27.66479,175.63,175.52,35.0204]
[1641123997101,27.66479,175.63,175.52,32.0204]
[1641123997302,31.68040389,175.64,175.52,35.0204]
[1641123997501,31.68040389,175.64,175.52,36.0622107]
[1641123997902,31.68040389,175.64,175.56,27.66479]
[1641123999006,27.66479,175.64,175.56,27.66479]
[1641124000306,31.68040389,175.64,175.56,27.66479]
[1641124000708,4.01561389,175.63,175.56,27.66479]
[1641124000907,9.25261389,175.63,175.56,27.66479]
[1641124003312,4.01561389,175.61,175.56,27.66479]
[1641124004009,4.01561389,175.62,175.56,27.66479]
[1641124005614,4.01561389,175.59,175.56,27.66479]
[1641124008315,4.01561389,175.59,175.55,4.0418107]
[1641124008614,4.01561389,175.59,175.56,4.0418107]
[1641124009416,4.01561389,175.59,175.55,31.7066007]
[1641124010920,4.01561389,175.57,175.55,27.66479]
[1641124012524,9.04861389,175.57,175.55,27.66479]
[1641124012925,5.033,175.57,175.55,31.7066007]
[1641124014026,9.07618516,175.57,175.56,5.32078595]
[1641124014227,4.04318516,175.57,175.56,5.32078595]
[1641124014628,4.04318516,175.57,175.56,4.0418107]
[1641124015130,12.12559293,175.6,175.56,31.7066007]
[1641124017930,12.12559293,175.6,175.56,4.0418107]
[1641124018131,12.12559293,175.6,175.55,4.0418107]
[1641124018734,12.12559293,175.6,175.56,4.0418107]
[1641124018934,14.88979956,175.6,175.56,4.0418107]
[1641124019133,14.88979956,175.6,175.56,31.7066007]
[1641124019533,2.76420663,175.6,175.56,31.7066007]
[1641124020132,14.88979956,175.61,175.56,31.7066007]
[1641124021243,12.12559293,175.6,175.56,27.66479]
[1641124021437,17.02059293,175.6,175.56,27.66479]
[1641124022038,2.76420663,175.59,175.56,27.66479]
[1641124023239,17.02059293,175.6,175.56,27.66479]
[1641124023841,2.76289718,175.59,175.56,27.66479]
[1641124024539,17.02059293,175.6,175.56,27.66479]
[1641124025242,2.76289259,175.59,175.56,27.66479]
[1641124025942,17.02059293,175.6,175.56,27.66479]
[1641124026743,2.76289885,175.59,175.56,27.66479]
[1641124027442,17.02059293,175.6,175.56,27.66479]
[1641124027643,4.895,175.6,175.56,31.70589762]
[1641124027843,12.12559293,175.61,175.56,31.70589762]
[1641124028144,12.12559293,175.61,175.56,27.66479]
[1641124028344,12.12559293,175.6,175.56,27.66479]
[1641124028546,17.82759293,175.6,175.56,27.66479]
[1641124028948,5.702,175.6,175.56,31.70590616]
[1641124029447,2.76291865,175.59,175.56,27.66479]
[1641124030248,17.82759293,175.6,175.56,27.66479]
[1641124031046,2.76276021,175.59,175.56,27.66479]
[1641124031747,17.82759293,175.6,175.56,27.66479]
[1641124032551,2.76279698,175.59,175.53,27.66479]
[1641124032949,17.82759293,175.6,175.53,27.66479]
[1641124033148,12.12559293,175.59,175.55,4.04340712]
[1641124033851,5.702,175.6,175.54,1.27895305]
[1641124034051,2.7645553,175.59,175.53,27.66479]
[1641124034651,2.7645553,175.59,175.55,4.04341915]
[1641124034652,12.13025745,175.59,175.55,4.04341915]
[1641124035350,2.7645553,175.59,175.56,4.04331701]
[1641124036153,12.12995103,175.59,175.55,4.04339844]
[1641124036852,10.06165691,175.61,175.53,27.66479]
[1641124037052,2.76170053,175.59,175.54,4.03938078]
[1641124037655,12.11814233,175.6,175.54,1.27767858]
[1641124038355,12.11814233,175.6,175.54,4.03940732]
[1641124039161,12.11814233,175.6,175.53,1.27767062]
[1641124039659,12.11814233,175.6,175.54,4.03941913]
[1641124039859,12.11814233,175.6,175.55,27.66479]
[1641124040663,12.11814233,175.6,175.52,59.68519]
[1641124040862,12.11814233,175.6,175.54,4.03950549]